bitfinex-derivatives/quotes_ETHF0:USTF0_20260207
["timestamp","ask_amount","ask_price","bid_price","bid_amount"]
[1770470675897,8.74820134,2046.2,2045.4,0.0036247]
[1770470676089,7.11448936,2046.0,2045.4,0.0036247]
[1770470676295,8.66141121,2045.8,2045.2,8.22938655]
[1770470676490,7.86604835,2045.8,2045.2,8.22938655]
[1770470677292,7.86604835,2045.8,2045.2,8.23512137]
[1770470679801,7.11448936,2045.9,2045.2,8.23512137]
[1770470680302,15.77590057,2046.0,2045.2,8.23512137]
[1770470681000,7.11448936,2046.0,2045.2,8.23512137]
[1770470682001,7.11448936,2046.2,2045.2,8.23512137]
[1770470682199,15.77590057,2046.2,2045.2,8.23512137]
[1770470682406,15.77590057,2046.1,2045.2,8.23512137]
[1770470682802,8.66141121,2046.1,2045.2,8.23512137]
[1770470683300,15.77590057,2046.1,2045.2,8.23512137]
[1770470683893,7.11448936,2046.1,2045.2,8.23512137]
[1770470684294,15.77590057,2046.2,2045.2,8.23512137]
[1770470685004,8.66141121,2046.1,2045.2,8.23512137]
[1770470685601,7.11448936,2046.2,2045.2,8.23512137]
[1770470685802,15.77590057,2046.2,2045.2,8.23512137]
[1770470685999,7.30437687,2046.5,2045.4,8.22938655]
[1770470686203,0.00493692,2046.7,2045.4,8.22938655]
[1770470686204,8.66634813,2046.7,2045.6,8.22938655]
[1770470687802,8.66141121,2046.5,2045.4,8.22938655]
[1770470688408,8.66141121,2046.5,2045.2,8.23512137]
[1770470688409,8.90599121,2046.5,2045.2,8.23512137]
[1770470689603,8.90602121,2046.3,2045.2,8.23512137]
[1770470690402,8.5906055,2046.5,2045.2,8.23512137]
[1770470690709,8.66634813,2046.7,2045.7,8.22938655]
[1770470691206,8.66634813,2046.7,2045.8,8.22938655]
[1770470694504,8.66141121,2047.1,2045.8,8.22938655]
[1770470694706,8.66141121,2047.1,2045.9,8.22938655]
[1770470695502,8.66649289,2047.1,2045.9,8.22938655]
[1770470695905,8.66141121,2047.5,2046.1,8.22938655]
[1770470696913,8.66604286,2047.5,2046.1,8.22938655]
[1770470699220,8.66604286,2047.5,2046.1,11.15655352]
[1770470699419,8.66604286,2047.5,2046.2,8.22938655]
[1770470701814,8.91050286,2047.5,2046.2,8.22938655]
[1770470702413,8.66141121,2046.7,2045.6,8.22938655]
[1770470703414,8.90597121,2046.7,2045.6,8.22938655]
[1770470703615,8.66141121,2046.7,2045.2,8.23512137]
[1770470704612,8.66141121,2046.5,2045.2,8.23512137]
[1770470705017,8.66141121,2047.0,2045.4,8.22938655]
[1770470705218,8.66141121,2047.0,2045.6,8.22938655]
[1770470706020,0.00463165,2047.5,2045.8,8.93901268]
[1770470706212,8.71141341,2047.4,2045.8,9.18367268]
[1770470706618,8.71141341,2047.4,2045.8,8.93901268]
[1770470709123,8.71141341,2047.4,2045.9,5.03694998]
[1770470709315,8.71141341,2047.4,2046.0,8.93901268]
[1770470709518,0.00463165,2047.5,2046.2,8.93901268]
[1770470709715,8.71604506,2047.5,2046.2,8.93901268]
[1770470710115,8.71604506,2047.5,2046.1,5.53736017]
[1770470710116,0.00463165,2047.5,2046.5,8.59454652]
[1770470710321,8.13575645,2047.7,2046.5,8.59454652]
[1770470711418,8.14059231,2047.7,2046.5,8.59454652]
[1770470711915,8.13575645,2047.6,2046.5,8.59454652]
[1770470712319,8.13575645,2047.6,2046.1,8.59454652]
[1770470712516,8.13575645,2047.3,2046.1,8.59454652]
[1770470713121,8.13575645,2047.0,2046.1,8.59454652]
[1770470714019,8.13575645,2047.3,2045.8,8.59454652]
[1770470714221,8.13575645,2047.1,2045.8,8.59454652]
[1770470718525,8.13575645,2047.1,2046.1,8.59454652]
[1770470720330,8.13575645,2047.1,2046.2,8.59454652]
[1770470721430,8.13575645,2047.1,2046.3,8.59454652]
[1770470722733,8.13575645,2047.1,2046.2,2.832]
[1770470723139,8.13575645,2047.1,2046.3,8.59454652]
[1770470725536,8.13575645,2047.5,2046.3,8.59454652]
[1770470726537,8.13575645,2047.5,2046.4,16.15622222]
[1770470726740,8.13575645,2047.5,2046.5,8.19588763]
[1770470727334,0.00483586,2047.7,2046.5,16.5652478]
[1770470727538,8.14059231,2047.7,2046.7,8.24057833]
[1770470727740,8.14059231,2047.7,2046.7,8.24652956]
[1770470729440,8.14059231,2047.7,2046.7,0.00595123]
[1770470729645,8.13575645,2047.6,2046.7,0.00595123]
[1770470729846,8.13575645,2047.6,2046.7,8.27920267]
[1770470732539,8.13575645,2047.6,2046.9,8.17929032]
[1770470732744,8.13575645,2047.6,2046.9,11.01129032]
[1770470733243,8.13575645,2047.6,2046.9,2.832]
[1770470733442,0.00483586,2047.7,2047.0,7.81230495]
[1770470733646,8.14059231,2047.7,2047.0,7.81230495]
[1770470734749,0.00483586,2047.7,2047.0,7.81230495]
[1770470734954,8.13575645,2048.1,2047.0,7.81230495]
[1770470735846,8.14051633,2048.1,2047.0,7.81230495]
[1770470737847,8.14051633,2048.1,2046.7,4.37390074]
[1770470737848,8.75355705,2047.6,2046.7,0.00595123]
[1770470740052,8.75355705,2047.6,2046.7,8.12714867]
[1770470740448,8.75355705,2047.6,2046.7,0.00595123]
[1770470740654,8.75355705,2047.6,2046.7,8.12714867]
[1770470742360,8.75355705,2047.8,2046.7,8.12714867]
[1770470745152,8.75355705,2047.8,2046.7,11.05431564]
[1770470745354,8.75355705,2047.8,2046.8,8.12119744]
[1770470747257,8.75355705,2047.8,2046.7,2.9331182]
[1770470747563,8.75355705,2047.5,2046.7,0.00595123]
[1770470752855,8.75355705,2047.4,2046.7,0.00595123]
[1770470753062,8.75355705,2047.3,2046.1,8.12119744]
[1770470753256,8.75355705,2047.2,2046.1,8.12119744]
[1770470753970,8.75355705,2047.2,2046.1,8.1272168]
[1770470754670,8.75355705,2047.2,2046.2,8.12119744]
[1770470758969,8.75355705,2047.2,2046.2,10.95319744]
[1770470759371,8.75355705,2047.2,2046.3,8.12119744]
[1770470760561,8.75355705,2047.2,2046.1,2.61621256]
[1770470760562,8.75355705,2047.4,2046.5,8.12119744]
[1770470761472,8.75355705,2047.3,2046.1,8.1272168]
[1770470761664,8.75355705,2047.2,2046.1,8.1272168]
[1770470762467,8.75355705,2047.1,2046.1,0.00601936]
[1770470762671,8.75355705,2047.1,2046.1,8.1272168]
[1770470762871,8.99809705,2046.9,2045.5,2.92716697]
[1770470763168,8.75355705,2046.8,2045.6,8.12119744]
[1770470763971,8.75355705,2046.8,2045.6,8.12669382]
[1770470765876,8.25362051,2046.7,2045.6,8.12669382]
[1770470766177,8.25362051,2046.6,2045.6,8.12669382]
[1770470766375,8.2583219,2046.6,2045.6,8.12669382]
[1770470768679,8.2583219,2046.6,2045.6,0.00549638]
[1770470769779,8.5028919,2046.6,2045.6,0.00549638]
[1770470770076,7.28639626,2046.4,2045.1,8.05005531]
[1770470770276,8.737825,2046.6,2045.4,8.19427482]
[1770470770277,7.97418763,2046.6,2045.4,8.19427482]
[1770470770473,7.97418763,2046.6,2045.4,11.12144179]
[1770470770679,7.97418763,2046.6,2045.5,8.18902658]
[1770470770874,7.97418763,2046.6,2045.7,8.1923266]
[1770470771076,7.97418763,2046.6,2045.8,8.1923266]
[1770470771280,0.00470139,2046.6,2045.8,8.1923266]
[1770470771979,7.97418763,2046.6,2045.8,8.1923266]
[1770470774380,7.96948624,2046.8,2045.8,8.1923266]
[1770470775580,7.97305827,2046.8,2045.8,8.1923266]
[1770470776078,19.29235475,2048.5,2046.5,8.42049027]
[1770470776079,7.96948624,2047.6,2046.5,8.42049027]
[1770470776379,7.96948624,2047.6,2046.6,8.42049027]
[1770470776578,7.51336453,2048.2,2046.6,4.87286224]
[1770470776876,7.51336453,2048.2,2046.5,2.91734306]
[1770470776877,7.96948624,2048.1,2046.7,8.42049027]
[1770470777275,7.97404037,2048.1,2046.7,8.42049027]
[1770470778172,7.96948624,2047.9,2046.7,8.42049027]
[1770470785380,8.21389624,2047.9,2046.5,8.42049027]
[1770470788988,7.96948624,2047.7,2046.3,8.42049027]
[1770470789186,7.96948624,2047.5,2046.5,8.42049027]
[1770470792887,7.96948624,2047.5,2046.4,11.25249027]
[1770470793087,7.96948624,2047.5,2046.5,8.42049027]
[1770470793284,7.96948624,2047.5,2046.4,11.25249027]
[1770470793485,7.96948624,2047.5,2046.4,8.42049027]
[1770470799300,8.40571137,2047.4,2046.4,8.42049027]
[1770470803089,8.40571137,2047.3,2046.4,8.42049027]
[1770470804200,15.67007743,2047.3,2046.4,8.42049027]
[1770470804400,8.40571137,2047.2,2046.4,8.42049027]
[1770470805492,8.40571137,2047.1,2046.1,8.47549149]
[1770470805695,8.40571137,2046.9,2046.1,8.47549149]
[1770470806100,8.40571137,2046.8,2045.8,8.47549149]
[1770470806293,8.40571137,2046.7,2045.8,8.47549149]
[1770470809704,8.40571137,2046.8,2045.8,8.47549149]
[1770470811101,8.40571137,2047.3,2046.0,8.47549149]
[1770470811593,8.40571137,2047.3,2046.1,8.47549149]
[1770470814805,8.40571137,2047.3,2046.3,8.47549149]
[1770470817408,8.40571137,2047.5,2046.5,8.47549149]
[1770470820305,7.26436606,2047.6,2046.5,8.47549149]
[1770470820505,15.67007743,2048.0,2046.8,8.47549149]
[1770470820705,8.40571137,2048.0,2046.8,8.47549149]
[1770470820907,8.40571137,2047.9,2046.8,8.47549149]
[1770470821105,8.40571137,2047.8,2046.8,8.47549149]
[1770470821307,8.40571137,2047.7,2046.8,8.47549149]
[1770470821504,0.24447,2047.4,2046.2,11.39283455]
[1770470821705,8.40571137,2047.1,2046.1,8.47549149]
[1770470821908,8.40571137,2047.0,2046.1,8.47549149]
[1770470822412,8.40571137,2046.6,2045.6,8.47549149]
[1770470822713,8.41064545,2046.6,2045.6,8.47549149]
[1770470826910,8.41064545,2046.6,2045.5,0.00425068]
[1770470827119,8.12298254,2046.3,2045.0,18.52279211]
[1770470827411,8.12298254,2046.0,2045.0,8.09710138]
[1770470828210,7.50898606,2046.2,2045.0,8.10186314]
[1770470828404,8.12298254,2046.1,2045.0,8.10186314]
[1770470837022,8.01596307,2046.4,2045.1,7.57770818]
[1770470837317,8.01596307,2046.4,2045.0,7.58246994]
[1770470837318,8.26057307,2046.3,2045.0,7.58246994]
[1770470838020,0.00493408,2046.6,2045.0,7.58246994]
[1770470838315,0.00493408,2046.6,2045.6,7.57770818]
[1770470841823,8.01596307,2047.0,2045.6,7.57770818]
[1770470842023,8.01596307,2047.0,2045.9,7.57770818]
[1770470842619,8.01596307,2047.5,2046.0,7.57770818]
[1770470842812,8.02079071,2047.5,2046.0,7.57770818]
[1770470843017,8.01596307,2047.3,2046.0,7.57770818]
[1770470846721,8.01596307,2047.1,2046.0,7.57770818]
[1770470851818,8.01596307,2047.0,2046.0,7.57770818]
[1770470865839,7.22107751,2047.0,2046.0,7.57770818]
[1770470866233,7.22107751,2047.0,2046.1,7.82896645]
[1770470867539,7.22107751,2047.0,2046.2,7.82896645]
[1770470871345,7.22107751,2047.0,2046.1,13.57830951]
[1770470871541,7.22107751,2047.0,2046.1,7.82896645]
[1770470872742,13.85886688,2047.3,2046.1,7.82896645]
[1770470872943,7.26001311,2047.5,2046.6,7.82896645]
[1770470873248,7.26001311,2047.5,2046.6,7.8323991]
[1770470873448,7.26001311,2047.5,2046.6,9.64430075]
[1770470873648,7.26001311,2047.5,2046.9,7.82896645]
[1770470876852,7.26001311,2047.5,2046.7,7.82896645]
[1770470877947,8.73312361,2048.2,2046.9,7.82896645]
[1770470878148,7.25518547,2048.1,2046.9,7.82896645]
[1770470879048,7.25968038,2048.1,2046.9,7.82896645]
[1770470879850,0.00449491,2048.1,2047.3,7.82896645]
[1770470880150,7.25968038,2048.1,2047.3,7.82896645]
[1770470880348,0.00449491,2048.1,2047.3,7.82896645]
[1770470880650,7.25518547,2048.4,2047.3,7.82896645]
[1770470880845,7.25518547,2048.4,2046.9,10.74630951]
[1770470881044,7.25518547,2048.2,2047.0,7.82896645]
[1770470881551,7.25919257,2048.2,2047.0,7.82896645]
[1770470882748,7.27650394,2048.1,2047.0,7.82896645]
[1770470882949,7.25518547,2048.0,2047.0,7.82896645]
[1770470883249,7.25518547,2047.5,2046.6,7.8323991]
[1770470883848,14.53168941,2047.5,2046.6,0.00343265]
[1770470884151,7.25518547,2047.4,2046.6,0.00343265]
[1770470884348,7.25518547,2047.3,2046.6,0.00343265]
[1770470885148,7.25518547,2047.3,2046.2,7.82896645]
[1770470886251,7.27650394,2047.4,2046.2,7.83477502]
[1770470886556,7.35577379,2047.9,2046.6,7.46720413]
[1770470886749,7.35577379,2047.9,2046.7,7.46720413]
[1770470887751,7.35577379,2047.9,2046.8,7.46720413]
[1770470889054,7.35577379,2047.9,2046.9,7.46720413]
[1770470889256,7.35577379,2048.1,2046.9,7.46720413]
[1770470889954,7.35577379,2048.1,2047.2,7.46720413]
[1770470890150,7.35577379,2048.6,2047.5,7.46720413]
[1770470891157,7.36081159,2048.6,2047.5,7.46720413]
[1770470891549,7.36081159,2048.6,2047.5,7.77674372]
[1770470893856,8.1274961,2048.5,2047.2,7.57996537]
[1770470894263,8.1325339,2048.6,2047.4,7.57996537]
[1770470899762,8.1325339,2048.6,2047.5,7.57996537]
[1770470900261,8.1325339,2048.6,2047.7,7.57996537]
[1770470900462,8.1325339,2048.6,2047.7,7.58585714]
[1770470902363,8.1325339,2048.6,2047.7,0.00589177]
[1770470902759,8.3768639,2048.6,2047.7,0.00589177]
[1770470903857,8.1274961,2048.4,2047.7,0.00589177]
[1770470909976,8.1274961,2048.4,2047.3,7.57996537]
[1770470910870,8.1274961,2048.4,2047.3,7.58491425]
[1770470913273,8.3718461,2048.4,2047.3,7.58491425]
[1770470913676,8.3718461,2048.4,2047.3,0.00494888]
[1770470914277,8.1274961,2048.3,2047.3,0.00494888]
[1770470915977,15.38715807,2048.1,2047.3,0.00494888]
[1770470916278,8.13221775,2048.0,2046.9,10.75003967]
[1770470917171,8.13221775,2048.0,2047.0,7.91803967]
[1770470922868,8.13221775,2048.1,2047.1,7.91803967]
[1770470923774,8.13221775,2048.1,2047.0,2.832]
[1770470923974,8.13221775,2048.0,2047.1,7.91803967]
[1770470928385,8.13221775,2047.9,2046.9,7.92316766]
[1770470929283,8.13221775,2047.8,2046.9,7.92316766]
[1770470932090,15.38715807,2047.8,2046.9,7.92316766]
[1770470932286,8.13221775,2047.7,2046.9,7.92316766]
[1770470933287,8.13221775,2047.7,2046.9,0.00512799]
[1770470934085,0.24446,2047.6,2046.9,0.00512799]
[1770470934288,8.37667775,2047.5,2046.4,7.91803967]
[1770470934493,8.13221775,2047.4,2046.4,7.91803967]
[1770470935192,8.13221775,2047.4,2046.4,7.92362844]
[1770470940393,8.13221775,2047.6,2046.4,7.92362844]
[1770470944301,8.13221775,2047.5,2046.4,7.92362844]
[1770470944898,7.25494032,2047.7,2046.7,7.91803967]
[1770470945102,8.13221775,2047.9,2046.9,7.91803967]
[1770470948409,7.68277043,2048.1,2046.9,7.91803967]
[1770470950012,7.68277043,2048.1,2046.8,7.81641791]
[1770470950013,7.3252414,2047.9,2046.8,7.81641791]
[1770470950206,7.3252414,2047.8,2046.8,7.81641791]
[1770470952110,7.3252414,2047.7,2046.5,7.81641791]
[1770470954500,7.25494032,2047.8,2046.5,7.81641791]
[1770470954501,7.3252414,2047.5,2046.5,7.81641791]
[1770470957413,9.13739486,2047.5,2046.5,7.81641791]
[1770470960212,7.3252414,2047.5,2046.9,7.81641791]
[1770470960410,6.53055232,2047.5,2046.9,7.81641791]
[1770470962320,6.53055232,2047.5,2046.7,7.81641791]
[1770470963922,6.53055232,2047.5,2046.9,7.81641791]
[1770470965222,9.31152378,2047.8,2046.9,7.81641791]
[1770470965422,7.3252414,2047.7,2046.9,7.81641791]
[1770470965622,7.3252414,2047.7,2046.9,9.62857137]
[1770470966524,7.3252414,2047.8,2047.0,7.81641791]
[1770470968025,7.3252414,2048.1,2047.2,9.62857137]
[1770470968223,1.81215346,2048.4,2047.2,7.81641791]
[1770470968224,7.3252414,2047.9,2047.2,7.81641791]
[1770470970428,6.53078148,2047.9,2047.2,7.81641791]
[1770470971028,6.53078148,2047.9,2047.2,9.62857137]
[1770470972632,7.3252414,2048.1,2047.2,9.62857137]
[1770470973035,7.3252414,2048.1,2047.3,7.81641791]
[1770470973632,7.3252414,2047.9,2047.3,7.81641791]
[1770470975021,7.3252414,2047.9,2047.1,10.64841791]
[1770470975226,7.3252414,2047.9,2047.2,7.81641791]
[1770470975833,7.3252414,2047.9,2047.1,10.64841791]
[1770470976330,7.3252414,2047.9,2047.2,7.92447759]
[1770470989246,6.53069335,2047.9,2047.2,7.92447759]
[1770470989443,7.57684842,2048.0,2047.5,7.92447759]
[1770470992145,7.57684842,2048.0,2047.2,1.81215346]
[1770470992350,7.57684842,2048.0,2047.3,7.92447759]
[1770470993954,7.57684842,2048.0,2047.2,9.73663105]
[1770470994556,7.57684842,2048.0,2047.2,7.92447759]
[1770470995055,7.57684842,2047.6,2046.9,7.92447759]
[1770470995550,7.57684842,2047.6,2047.0,9.73663105]
[1770470996455,7.57684842,2047.7,2047.3,7.92447759]
[1770470996657,7.57684842,2047.7,2047.2,7.92447759]
[1770470999456,6.78226823,2047.7,2047.2,7.92447759]
[1770471000150,14.83178874,2047.9,2047.2,7.92447759]
[1770471000346,0.0050378,2048.6,2047.2,7.92447759]
[1770471000347,7.57684842,2048.4,2047.8,4.89137167]
[1770471000547,7.57684842,2048.5,2047.8,9.73663105]
[1770471000858,7.57684842,2048.5,2048.0,9.73663105]
[1770471001058,7.57684842,2048.5,2048.0,9.74159829]
[1770471001360,7.57684842,2048.5,2048.0,0.00496724]
[1770471001959,7.57684842,2048.5,2047.3,1.81215346]
[1770471001960,7.57684842,2048.2,2047.3,1.81215346]
[1770471002152,7.57684842,2048.2,2047.3,7.92447759]
[1770471002355,7.57684842,2048.0,2047.3,7.92447759]
[1770471002655,7.57684842,2048.0,2047.1,9.73663105]
[1770471002865,7.57684842,2047.8,2047.1,7.92919804]
[1770471003156,7.57684842,2047.8,2047.1,0.00472045]
[1770471003555,7.57684842,2047.8,2047.1,7.92919804]
[1770471004253,7.57684842,2047.8,2047.1,9.7413515]
[1770471004459,7.57684842,2047.8,2047.1,7.92919804]
[1770471006057,7.57684842,2047.8,2047.1,0.00472045]
[1770471006561,7.57684842,2047.8,2047.1,8.31218738]
[1770471006860,7.57684842,2047.8,2047.1,0.00472045]
[1770471007556,7.57684842,2047.8,2047.1,8.31218738]
[1770471009660,8.29714451,2048.0,2047.1,8.31218738]
[1770471012764,8.29714451,2048.0,2047.1,10.12434084]
[1770471012965,7.50265773,2048.0,2047.1,10.12434084]
[1770471013154,15.61552375,2048.2,2047.1,10.12434084]
[1770471013355,8.2999629,2048.1,2047.1,10.12434084]
[1770471013663,8.2999629,2048.1,2047.1,8.31218738]
[1770471016167,10.11075418,2048.1,2047.1,8.31218738]
[1770471016367,8.2999629,2048.1,2047.1,8.31218738]
[1770471017065,8.2999629,2048.2,2047.3,8.52095728]
[1770471021364,8.2999629,2048.5,2047.4,7.90612119]
[1770471021571,8.2999629,2048.5,2047.5,8.52095728]
[1770471021869,8.3050007,2048.6,2047.6,8.52095728]
[1770471022070,8.3050007,2048.6,2047.7,8.52095728]
[1770471025272,8.2999629,2048.4,2047.7,8.52095728]
[1770471025463,7.50563322,2048.4,2047.7,8.52095728]
[1770471028074,8.3050007,2048.6,2047.7,8.52095728]
[1770471029272,8.3050007,2048.6,2047.8,8.52095728]
[1770471029472,8.3050007,2048.6,2047.9,8.52095728]
[1770471030474,0.0050378,2048.6,2047.9,8.52095728]
[1770471030879,8.3050007,2048.6,2047.9,8.52095728]
[1770471032477,0.0050378,2048.6,2047.9,8.52095728]
[1770471033177,8.2999629,2049.0,2048.1,8.52095728]
[1770471033383,8.2999629,2048.9,2048.1,8.52095728]
[1770471034273,8.30350854,2048.9,2048.1,8.52095728]
[1770471036676,0.00354564,2048.9,2048.1,8.52095728]
[1770471038580,10.3685674,2049.2,2048.1,8.52095728]
[1770471039578,10.37390372,2049.2,2048.1,8.52095728]
[1770471039884,8.56311244,2049.2,2048.1,8.52095728]
[1770471041083,10.37390372,2049.2,2048.1,8.52095728]
[1770471041281,0.00533632,2049.2,2048.5,1.81079128]
[1770471041474,8.55777612,2050.1,2049.2,8.29830866]
[1770471041871,8.55777612,2050.1,2048.9,8.29830866]
[1770471042076,8.55777612,2049.9,2048.9,8.29830866]
[1770471042281,8.55777612,2049.9,2048.6,8.29830866]
[1770471042478,8.56283898,2049.9,2048.6,8.30419564]
[1770471043384,10.37363026,2049.9,2048.6,8.30419564]
[1770471043588,8.55777612,2049.6,2048.6,8.30419564]
[1770471044083,0.00506286,2049.9,2048.2,8.29830866]
[1770471044084,8.55777612,2049.2,2048.2,8.29830866]
[1770471045079,8.55777612,2049.2,2048.2,8.30425812]
[1770471046382,1.81079128,2049.4,2048.2,10.1150494]
[1770471046383,8.55777612,2049.4,2048.2,10.1150494]
[1770471046686,8.55777612,2049.4,2048.6,8.29830866]
[1770471047684,7.55777612,2049.4,2048.6,8.29830866]
[1770471050579,8.55777612,2049.8,2048.6,8.29830866]
[1770471051578,8.55777612,2049.8,2048.7,8.29830866]
[1770471054489,8.55777612,2049.8,2048.8,8.29830866]
[1770471056188,8.55777612,2049.8,2048.7,8.29830866]
[1770471058191,8.80196612,2049.8,2048.3,15.56798419]
[1770471058497,8.80196612,2049.8,2048.2,5.8826072]
[1770471058498,8.80201612,2049.4,2048.2,0.00594946]
[1770471059091,8.80204612,2049.1,2047.8,8.29830866]
[1770471059403,8.55777612,2048.9,2047.5,8.29830866]
[1770471060096,8.55777612,2048.9,2047.5,8.30207504]
[1770471060687,8.55777612,2048.9,2047.5,0.00376638]
[1770471060989,8.55777612,2048.9,2047.1,8.29830866]
[1770471060990,8.55777612,2048.3,2047.1,8.29830866]
[1770471061191,2.60363821,2048.0,2046.9,8.29830866]
[1770471061396,8.55777612,2047.9,2046.5,8.29830866]
[1770471061590,2.60363821,2047.6,2046.5,8.29830866]
[1770471061789,8.55777612,2047.5,2046.5,8.29830866]
[1770471061988,8.56284058,2047.5,2046.5,8.30348283]
[1770471062586,8.56284058,2047.5,2046.5,0.00517417]
[1770471063592,8.55777612,2046.8,2045.6,8.61424056]
[1770471063793,0.00506446,2047.5,2045.6,8.61424056]
[1770471063794,8.55777612,2047.1,2045.6,8.61424056]
[1770471064592,8.55777612,2047.1,2045.6,8.61772362]
[1770471066090,8.68700811,2047.4,2045.6,8.61772362]
[1770471068200,8.68700811,2047.0,2045.6,8.30179172]
[1770471069200,8.68700811,2046.7,2045.6,0.00348306]
[1770471069900,8.68700811,2046.7,2044.4,9.36558772]
[1770471069901,8.68700811,2046.3,2045.2,8.40608117]
[1770471070993,8.68700811,2046.3,2045.2,8.41214874]
[1770471072500,8.68700811,2046.3,2045.2,0.00606757]
[1770471072694,8.68700811,2046.3,2044.2,0.24485]
[1770471072695,8.68700811,2046.3,2045.0,8.75446283]
[1770471073400,8.75701691,2046.2,2045.0,8.75446283]
[1770471073596,8.75701691,2045.9,2045.0,0.00449492]
[1770471073902,8.76089826,2045.9,2045.0,0.00449492]
[1770471074304,8.76089826,2045.9,2044.7,8.75446283]
[1770471075200,8.76089826,2045.9,2044.7,8.75805348]
[1770471075502,8.75701691,2045.7,2044.7,8.75805348]
[1770471077205,8.76089826,2045.9,2044.7,8.75805348]
[1770471079805,8.75701691,2046.4,2045.0,8.75446283]
[1770471080103,8.75701691,2045.8,2045.0,8.75446283]
[1770471080896,8.76091442,2045.8,2045.0,8.75446283]
[1770471081602,0.00389751,2045.8,2045.0,8.75446283]
[1770471084696,8.76091442,2045.8,2045.0,8.75446283]
[1770471085093,0.00389751,2045.8,2045.0,8.75446283]
[1770471085396,8.75701691,2046.4,2045.2,8.75446283]
[1770471086397,8.76272589,2046.4,2045.2,8.75446283]
[1770471086597,8.76272589,2046.4,2045.4,8.75446283]
[1770471086598,0.00570898,2046.4,2045.4,8.75446283]
[1770471086905,8.75701691,2046.9,2045.4,8.75446283]
[1770471087707,8.76160929,2046.9,2045.4,8.75446283]
[1770471087901,8.76160929,2046.9,2045.4,8.99917283]
[1770471088104,0.00459238,2046.9,2045.9,11.36875215]
[1770471088306,0.00459238,2046.9,2046.0,8.75446283]
[1770471088509,8.75701691,2047.2,2046.0,8.75446283]
[1770471089101,8.75701691,2047.4,2046.2,8.75446283]
[1770471089306,8.75701691,2047.6,2046.3,8.75446283]
[1770471089504,8.76079955,2047.6,2046.3,8.7587558]
[1770471090608,8.76079955,2047.6,2046.4,8.75446283]
[1770471091103,8.75701691,2047.4,2046.4,8.75446283]
[1770471091511,8.75701691,2047.1,2046.4,8.75446283]
[1770471091710,8.75701691,2047.1,2046.3,0.00429297]
[1770471092306,8.75701691,2047.1,2046.3,8.7587558]
[1770471092499,8.75701691,2046.9,2045.9,8.75446283]
[1770471093504,8.75701691,2046.9,2045.9,8.75918357]
[1770471094510,8.75701691,2046.9,2045.9,0.00472074]
[1770471094713,8.75701691,2046.9,2045.9,8.75918357]
[1770471103615,8.65066461,2046.2,2045.5,8.45027276]
[1770471104010,8.65066461,2046.2,2045.2,8.45027276]
[1770471104613,8.65066461,2046.2,2045.2,8.45478966]
[1770471105918,8.65066461,2045.6,2044.7,8.45027276]
[1770471106615,8.65066461,2045.6,2044.3,8.45027276]
[1770471106821,8.65066461,2045.3,2044.3,8.77775209]
[1770471107010,8.65066461,2045.0,2044.3,0.0058662]
[1770471107920,8.65066461,2045.0,2043.5,5.65133942]
[1770471107921,8.65066461,2044.7,2043.7,8.45027276]
[1770471108120,8.65066461,2044.4,2043.7,8.45027276]
[1770471108314,8.65066461,2044.4,2043.5,8.45027276]
[1770471108718,2.61428932,2044.5,2043.5,8.45027276]
[1770471108719,8.65066461,2044.1,2043.5,8.45027276]
[1770471109024,8.65491042,2044.1,2043.5,0.00549881]
[1770471109218,2.61428932,2043.7,2042.9,8.45027276]
[1770471109526,8.65066461,2043.2,2042.0,8.45027276]
[1770471110212,8.65066461,2043.2,2042.0,8.45387938]
[1770471110617,2.61428932,2043.3,2042.0,8.45387938]
[1770471110618,8.65066461,2042.9,2042.0,8.45387938]
[1770471110816,8.65066461,2042.9,2042.0,0.00360662]
[1770471111120,8.65066461,2042.3,2041.4,8.65702854]
[1770471111624,8.65066461,2042.9,2041.6,8.45027276]
[1770471111819,2.61428932,2043.3,2041.6,8.45027276]
[1770471112119,8.65453925,2042.9,2041.6,8.45556486]
[1770471112327,8.65066461,2042.6,2041.6,8.45556486]
[1770471113413,0.00387464,2042.9,2041.6,8.45556486]
[1770471113614,8.65453925,2042.9,2041.6,8.45556486]
[1770471114422,0.00387464,2042.9,2041.6,8.45556486]
[1770471115421,8.65066461,2043.5,2042.2,8.45027276]
[1770471116326,8.65066461,2043.8,2042.2,8.45027276]
[1770471116523,8.65501621,2043.8,2042.2,8.45027276]
[1770471117223,0.0043516,2043.8,2042.5,8.45027276]
[1770471117920,0.0043516,2043.8,2042.8,8.45027276]
[1770471118125,0.24476,2045.0,2043.1,8.45027276]
[1770471118126,8.65066461,2044.4,2043.1,8.45027276]
[1770471118723,8.65066461,2044.7,2043.1,8.45027276]
[1770471119225,8.65418254,2044.7,2043.1,8.45575445]
[1770471119827,2.61428932,2044.5,2043.1,8.45575445]
[1770471120026,8.65066461,2044.4,2043.1,8.45575445]
[1770471120326,0.00351793,2044.7,2043.1,8.45575445]
[1770471120327,0.00351793,2044.7,2043.4,8.45027276]
[1770471120524,0.00351793,2044.7,2043.7,8.45027276]
[1770471121428,2.61428932,2044.4,2043.4,8.45027276]
[1770471121633,8.65066461,2044.5,2043.2,8.45027276]
[1770471123927,8.65066461,2044.3,2043.2,8.45027276]
[1770471125429,0.00351793,2044.7,2043.3,8.45027276]
[1770471125626,8.65418254,2044.7,2043.3,8.69522276]
[1770471125826,8.62427869,2044.6,2043.3,8.69522276]
[1770471126222,2.61780725,2044.7,2043.1,0.00548169]
[1770471126223,8.62427869,2044.0,2043.1,8.54167485]
[1770471126933,8.62427869,2044.0,2043.1,0.00548169]
[1770471128235,8.62427869,2043.7,2043.1,0.00548169]
[1770471128638,8.62427869,2043.7,2042.7,8.53619316]
[1770471129335,8.62427869,2043.7,2042.1,8.53619316]
[1770471129637,8.62427869,2043.7,2042.1,8.54191089]
[1770471129932,8.62427869,2043.4,2042.1,8.54191089]
[1770471130634,8.35969694,2043.7,2042.1,8.54191089]
[1770471131135,8.35969694,2043.2,2042.1,8.54191089]
[1770471131330,8.35969694,2042.9,2042.1,8.54191089]
[1770471131528,8.35969694,2042.9,2042.1,0.00571773]
[1770471132334,8.35969694,2042.5,2041.4,0.20675578]
[1770471132547,8.35969694,2041.8,2041.4,0.20675578]
[1770471132840,8.35969694,2042.1,2041.0,8.19441766]
[1770471133337,8.35969694,2042.1,2041.0,8.19982351]
[1770471133533,8.35969694,2042.5,2041.1,8.19441766]
[1770471137541,8.60475694,2042.5,2041.0,0.00540585]
[1770471138736,8.60475694,2042.5,2041.0,8.19982351]
[1770471140034,8.35969694,2042.3,2041.0,8.19982351]
[1770471140234,8.35969694,2042.3,2041.0,0.00540585]
[1770471140439,8.35969694,2041.8,2040.3,8.19441766]
[1770471141145,8.60484694,2041.8,2040.3,8.19441766]
[1770471141346,8.60486694,2041.6,2040.3,8.19846426]
[1770471141543,8.36576818,2041.6,2040.3,8.19846426]
[1770471146345,0.00607124,2041.6,2040.3,8.44378426]
[1770471147151,8.35969694,2042.5,2041.0,8.19441766]
[1770471148152,8.60902379,2042.5,2041.0,8.19441766]
[1770471148940,8.36396379,2042.5,2041.0,8.19441766]
[1770471151359,8.35969694,2042.8,2041.3,8.43961766]
[1770471152353,0.0060001,2042.8,2041.5,8.19441766]
[1770471152552,0.0060001,2042.8,2041.8,8.19441766]